bitfinex/quotes_SOLUSD_20240708
["timestamp","ask_amount","ask_price","bid_price","bid_amount"]
[1720432273268,19.47065817,139.62,139.51,19.9911]
[1720432273559,7.25196753,139.66,139.45,272.1]
[1720432273560,19.47065817,139.66,139.53,19.4533]
[1720432273722,8.73041397,139.66,139.55,19.4533]
[1720432273926,30.0,139.69,139.56,7.6708]
[1720432274156,8.73041397,139.68,139.56,7.6708]
[1720432275327,0.17,139.67,139.56,7.6708]
[1720432275724,8.73041397,139.68,139.57,19.9267]
[1720432276941,20.0,139.67,139.57,19.9267]
[1720432277141,28.73041397,139.67,139.57,19.9267]
[1720432277346,8.90041397,139.66,139.57,19.9267]
[1720432277541,99.9651926,139.64,139.57,19.9267]
[1720432277742,20.0,139.63,139.57,19.9267]
[1720432277945,20.17,139.63,139.57,19.9267]
[1720432278430,99.9651926,139.62,139.57,19.9267]
[1720432278753,20.0,139.61,139.57,19.9267]
[1720432279059,20.17,139.61,139.57,19.9267]
[1720432279226,19.47065817,139.66,139.57,19.9267]
[1720432279429,8.73041397,139.66,139.57,19.9267]
[1720432280832,20.0,139.65,139.57,19.9267]
[1720432281154,8.73041397,139.66,139.58,8.1201]
[1720432281450,8.73041397,139.69,139.58,8.1201]
[1720432282534,20.0,139.68,139.58,8.1201]
[1720432282731,0.17,139.67,139.58,8.1201]
[1720432283153,19.47065817,139.69,139.58,8.1201]
[1720432283345,0.17,139.68,139.58,8.1201]
[1720432283862,19.47065817,139.69,139.59,19.466]
[1720432284163,8.73041397,139.74,139.61,19.466]
[1720432284332,8.73041397,139.74,139.62,7.718]
[1720432284530,8.73041397,139.74,139.64,8.0263]
[1720432284734,8.73041397,139.74,139.65,19.2542]
[1720432284933,10.50975531,139.79,139.66,8.0263]
[1720432285131,29.41429924,139.78,139.67,19.2542]
[1720432285439,8.73041397,139.78,139.67,19.2542]
[1720432286245,108.69560657,139.78,139.67,19.2542]
[1720432286845,20.85384788,139.77,139.67,19.2542]
[1720432287040,8.90041397,139.77,139.67,19.2542]
[1720432287247,20.0,139.76,139.67,19.2542]
[1720432287659,0.17,139.75,139.67,19.2542]
[1720432288860,99.9651926,139.74,139.67,19.2542]
[1720432289157,20.0,139.73,139.67,19.2542]
[1720432289359,0.17,139.72,139.67,19.2542]
[1720432289743,8.73041397,139.75,139.67,19.2542]
[1720432290151,0.17,139.74,139.67,19.2542]
[1720432290832,8.73041397,139.75,139.67,19.2542]
[1720432291037,18.4972915,139.79,139.67,19.2542]
[1720432291267,40.68373991,139.78,139.67,19.2542]
[1720432291562,20.0,139.78,139.67,19.2542]
[1720432292044,18.4972915,139.79,139.69,19.4381]
[1720432292250,0.1,139.79,139.72,19.4381]
[1720432296449,0.1,139.79,139.73,7.8347]
[1720432296670,20.0,139.88,139.75,7.8347]
[1720432296870,0.1,139.89,139.75,7.8347]
[1720432297082,0.1,139.89,139.76,19.1911]
[1720432299163,0.1,139.89,139.77,7.6028]
[1720432299370,0.1,139.89,139.78,19.1911]
[1720432299571,0.1,139.89,139.79,7.6028]
[1720432299770,0.1,139.89,139.8,19.1911]
[1720432302489,20.1,139.89,139.8,19.1911]
[1720432302695,0.1,139.89,139.8,19.1911]
[1720432303060,0.1,139.89,139.82,19.2593]
[1720432303259,0.1,139.89,139.83,8.0483]
[1720432303564,0.1,139.89,139.84,19.0401]
[1720432304475,7.283,139.99,139.85,8.3478]
[1720432304681,7.283,139.99,139.86,20.1806]
[1720432306963,0.1,139.99,139.89,7.7979]
[1720432308577,0.1,139.99,139.9,28.0168]
[1720432308994,20.1,139.99,139.9,28.0168]
[1720432309889,0.17,139.98,139.9,28.0168]
[1720432310100,0.1,139.99,139.9,28.0168]
[1720432310423,0.1,139.99,139.82,38.96]
[1720432310424,0.1,139.99,139.92,28.2286]
[1720432310604,0.1,139.99,139.93,11.3833]
[1720432315271,99.9651926,140.15,139.95,11.7787]
[1720432315603,99.9651926,140.13,139.98,26.5443]
[1720432315771,105.58465368,140.13,140.0,26.5443]
[1720432316597,99.9651926,140.11,140.0,26.5443]
[1720432316809,100.0651926,140.09,140.0,26.5443]
[1720432317111,20.0,140.08,140.0,26.5443]
[1720432317689,0.17,140.07,140.0,26.5443]
[1720432318182,100.1351926,140.07,140.0,26.5443]
[1720432318713,20.0,140.06,140.0,26.5443]
[1720432319103,0.17,140.05,140.0,26.5443]
[1720432321217,0.1,140.09,140.0,26.5443]
[1720432321781,105.7714878,140.11,140.09,703.457175]
[1720432321986,107.42870609,140.11,140.09,701.31227722]
[1720432322181,107.42870609,140.11,140.09,699.16327722]
[1720432322400,107.42870609,140.11,140.09,697.01427722]
[1720432322600,107.42870609,140.11,140.09,694.86267155]
[1720432322801,38.96,140.1,140.09,342.77167155]
[1720432323001,97.951,140.1,140.09,333.50267155]
[1720432323204,117.951,140.1,140.09,309.99327345]
[1720432323418,117.951,140.1,140.09,286.49327345]
[1720432323595,117.951,140.1,140.09,262.98427345]
[1720432323793,97.2477,140.1,140.09,225.23487535]
[1720432323999,97.2477,140.1,140.09,187.48547725]
[1720432324301,88.96,140.1,140.09,159.00547725]
[1720432324616,7.46351349,140.11,140.09,149.73487795]
[1720432324814,99.9651926,140.1,140.09,147.58427865]
[1720432325011,99.9651926,140.1,140.09,145.43367935]
[1720432325323,99.9651926,140.1,140.09,143.28467935]
[1720432325510,99.9651926,140.1,140.09,141.13475819]
[1720432325695,99.9651926,140.1,140.09,131.73475819]
[1720432326016,99.9651926,140.1,140.09,129.58483703]
[1720432326315,7.46351349,140.11,140.09,129.58483703]
[1720432326695,20.0,140.1,140.09,129.58483703]
[1720432326912,119.9651926,140.1,140.09,125.28499471]
[1720432327219,20.0,140.1,140.09,125.28499471]
[1720432330188,1.65721829,140.11,140.09,125.28499471]
[1720432330627,5.70225247,140.14,140.09,125.28499471]
[1720432330996,99.9651926,140.13,140.09,125.28499471]
[1720432331587,30.0,140.1,140.09,125.28499471]
[1720432333204,50.0,140.1,140.09,125.28499471]
[1720432333421,20.0,140.1,140.09,125.28499471]
[1720432334604,8.70310624,140.18,140.09,125.28499471]
[1720432334804,99.9651926,140.17,140.09,125.28499471]
[1720432335109,101.62222095,140.17,140.09,125.28499471]
[1720432335312,1.65702835,140.17,140.09,125.28499471]
[1720432335823,1.65702835,140.17,140.1,30.9013]
[1720432335824,21.65702835,140.17,140.1,30.9013]
[1720432336122,20.0,140.17,140.1,30.9013]
[1720432336322,0.1,140.19,140.1,30.9013]
[1720432336993,99.9651926,140.18,140.1,30.9013]
[1720432337594,99.9651926,140.16,140.1,30.9013]
[1720432337794,20.0,140.15,140.1,30.9013]
[1720432338917,30.0,140.11,140.1,30.9013]
[1720432339230,50.0,140.11,140.1,30.9013]
[1720432339613,17.112,140.11,140.1,30.9013]
[1720432340640,17.112,140.11,140.09,125.28499471]
[1720432340928,99.9651926,140.13,140.09,97.79118531]
[1720432341432,99.9651926,140.15,140.09,97.79118531]
[1720432341624,20.0,140.14,140.09,97.79118531]
[1720432341809,20.0,140.15,140.09,97.79118531]
[1720432342724,99.9651926,140.12,140.09,97.79118531]
[1720432342965,99.9651926,140.1,140.09,52.02811142]
[1720432343105,119.9651926,140.1,140.09,49.68611142]
[1720432343298,119.9651926,140.1,140.09,41.41142213]
[1720432343495,119.9651926,140.1,140.09,17.05142213]
[1720432343698,121.62222095,140.1,140.09,14.90273284]
[1720432344010,121.62222095,140.1,140.09,12.76273284]
[1720432344222,121.62222095,140.1,140.09,8.46673284]
[1720432344532,121.62222095,140.1,140.01,12.2645]
[1720432344731,20.0,140.09,140.01,12.2645]
[1720432345827,99.9651926,140.07,140.01,12.2645]
[1720432346039,20.0,140.06,140.01,12.2645]
[1720432347419,20.0,140.08,140.01,12.2645]
[1720432350743,21.65702835,140.1,140.01,12.2645]
[1720432350916,1.65702835,140.1,140.01,12.2645]
[1720432352826,38.96,140.11,140.01,12.2645]
[1720432353030,3.73232757,140.1,140.01,12.2645]
[1720432353231,38.96,140.11,140.01,12.2645]
[1720432353448,23.73335452,140.1,140.01,12.2645]
[1720432353744,20.0,140.1,140.01,12.2645]
[1720432354151,99.9651926,140.09,140.01,12.2645]
[1720432354329,23.73312006,140.08,140.01,12.2645]
[1720432354527,20.0,140.08,140.01,12.2645]
[1720432354955,20.0,140.1,140.01,12.2645]
[1720432355155,99.9651926,140.08,140.01,12.2645]
[1720432355464,23.7318922,140.07,140.01,12.2645]
[1720432355623,3.73205578,140.06,140.01,12.2645]
[1720432355819,20.0,140.07,140.01,12.2645]
[1720432356050,3.73174017,140.06,140.01,12.2645]
[1720432356252,20.0,140.07,140.01,12.2645]
[1720432356439,3.73218066,140.06,140.01,12.2645]
[1720432356638,20.0,140.07,140.01,12.2645]
[1720432356830,3.73176513,140.06,140.01,12.2645]
[1720432357148,3.73076213,140.05,140.01,12.2645]
[1720432357449,99.9651926,140.06,140.01,12.2645]
[1720432357750,44.36705953,140.05,139.97,44.0171]
[1720432357951,3.72995502,140.04,139.97,44.0171]
[1720432358123,3.72995502,140.03,139.97,44.0171]
[1720432358330,20.0,140.09,139.97,44.0171]
[1720432358534,124.33005775,140.08,139.97,44.0171]
[1720432358735,99.9651926,140.06,139.97,44.0171]
[1720432359026,23.72748746,140.05,139.97,44.0171]
[1720432359235,3.72808345,140.04,139.97,44.0171]
[1720432359433,20.0,140.05,139.97,44.0171]
[1720432359634,3.72908307,140.04,139.97,44.0171]
[1720432359848,20.0,140.07,139.97,44.0171]
[1720432360153,24.36646316,140.06,139.97,44.0171]
[1720432360457,20.0,140.05,139.97,44.0171]
[1720432360640,38.131552,140.04,139.97,44.0171]
[1720432360842,3.731552,140.03,139.97,44.0171]
[1720432361024,20.0,140.03,139.97,44.0171]
[1720432361726,20.0,140.06,139.97,44.0171]
[1720432362046,24.3668103,140.05,139.97,44.0171]
[1720432362250,34.4,140.07,139.98,12.117]
[1720432362550,3.73048252,140.06,139.98,12.117]
[1720432362745,3.73048252,140.05,139.98,12.117]
[1720432362946,21.13803957,140.15,139.99,29.8172]
[1720432362947,40.76077296,140.14,139.99,29.8172]
[1720432363134,34.4,140.1,140.0,12.117]
[1720432363342,34.4,140.1,140.03,12.117]
[1720432363343,3.72988538,140.09,140.03,12.117]
[1720432363544,24.36087644,140.09,140.03,12.117]
[1720432363732,3.72988538,140.08,140.03,12.117]
[1720432364850,99.9651926,140.17,140.03,12.117]
[1720432364851,34.4,140.12,140.03,12.117]
[1720432365053,118.97904683,140.19,140.04,0.6175285]
[1720432365251,34.4,140.14,140.04,0.6175285]
[1720432365491,24.35906397,140.13,140.03,12.117]
[1720432365768,3.73088723,140.12,140.05,11.8491]
[1720432365925,34.4,140.15,140.06,32.31585031]
[1720432366123,3.73373088,140.14,140.06,32.31585031]
[1720432366340,34.4,140.17,140.07,12.2213]
[1720432366543,0.1,140.19,140.07,12.2213]
[1720432366544,3.73393852,140.16,140.08,1.42524679]
[1720432366749,3.73393852,140.15,140.09,31.7241]
[1720432366929,0.1,140.19,140.1,1.42504332]
[1720432367130,3.73413225,140.18,140.09,31.7241]
[1720432367333,3.73413225,140.17,140.09,31.7241]
[1720432367556,3.73394133,140.16,140.09,31.7241]
[1720432367853,0.1,140.19,140.09,31.7241]
[1720432368058,3.73398123,140.18,140.09,31.7241]
[1720432368250,3.73391044,140.17,140.09,31.7241]
[1720432368556,0.1,140.19,140.09,31.7241]
[1720432368726,3.7342409,140.18,140.09,31.7241]
[1720432368929,3.7342409,140.17,140.09,31.7241]
[1720432369129,20.1,140.19,140.09,31.7241]
[1720432369352,3.73384911,140.18,140.09,31.7241]
[1720432369551,3.73384911,140.17,140.09,31.7241]
[1720432369758,3.73384911,140.16,140.09,31.7241]
[1720432369957,23.73384911,140.16,140.09,31.7241]
[1720432370263,20.0,140.16,140.09,31.7241]
[1720432370768,20.1,140.19,140.09,31.7241]
[1720432371080,3.73329783,140.18,140.09,31.7241]
[1720432371376,20.1,140.19,140.09,31.7241]
[1720432371876,3.73340951,140.18,140.09,31.7241]
[1720432372178,20.1,140.19,140.09,31.7241]
[1720432372384,3.73288455,140.18,140.09,31.7241]
[1720432372583,20.1,140.19,140.09,31.7241]
[1720432373257,99.9651926,140.18,140.09,31.7241]
[1720432373575,99.9651926,140.16,140.09,31.7241]
[1720432373783,20.0,140.15,140.09,31.7241]
[1720432374851,20.0,140.17,140.09,31.7241]
[1720432375055,20.0,140.18,140.09,31.7241]
[1720432376076,38.73,140.19,140.09,31.7241]
[1720432376379,0.1,140.19,140.09,31.7241]
[1720432377862,0.1,140.19,140.1,12.3827]
[1720432379581,0.1,140.19,140.11,31.8337]
[1720432383285,0.1,140.19,140.12,13.1884]
[1720432383666,0.1,140.19,140.13,32.1341]
[1720432385264,8.22643957,140.25,140.17,32.1131]
[1720432385463,0.1,140.29,140.17,32.1131]
[1720432385464,6.46077296,140.29,140.17,32.1131]
[1720432386282,0.1,140.29,140.2,12.0635]
[1720432386861,34.37,140.29,140.2,12.0635]
[1720432387063,34.27,140.27,140.2,12.0635]
[1720432387475,6.46077296,140.29,140.2,12.0635]
[1720432387666,54.27,140.28,140.2,12.0635]
[1720432388592,20.0,140.28,140.2,12.0635]
[1720432388891,6.46077296,140.29,140.2,12.0635]
[1720432390279,20.0,140.28,140.2,12.0635]
[1720432390587,0.1,140.29,140.2,12.0635]
[1720432391168,0.1,140.29,140.21,32.198]
[1720432392089,0.1,140.29,140.22,13.1545]
[1720432392894,100.0651926,140.29,140.22,13.1545]
[1720432393101,20.0,140.28,140.22,13.1545]
[1720432393664,0.1,140.29,140.22,13.1545]
[1720432398064,0.1,140.29,140.23,33.079]
[1720432400282,0.1,140.29,140.24,13.2031]
[1720432400611,76.21397296,140.4,140.26,13.0331]
[1720432401706,44.93077296,140.4,140.28,12.9959]
[1720432402086,6.36077296,140.4,140.28,12.9959]
[1720432402811,99.9651926,140.39,140.28,12.9959]
[1720432403380,6.36077296,140.4,140.28,12.9959]
[1720432404410,13.85354795,140.42,140.3,12.9112]
[1720432404615,44.8947,140.45,140.29,33.1902]
[1720432404616,6.36077296,140.45,140.32,12.9112]
[1720432405611,6.36077296,140.45,140.33,33.1902]
[1720432405905,6.36077296,140.45,140.34,12.9112]
[1720432406274,152.38874055,140.48,140.36,33.1902]
[1720432407509,99.9651926,140.45,140.36,33.1902]
[1720432408218,20.0,140.44,140.36,33.1902]
[1720432408445,106.36831728,140.47,140.36,33.1902]
[1720432408446,20.0,140.46,140.36,33.1902]
[1720432409004,99.9651926,140.43,140.36,33.1902]
[1720432409226,20.0,140.42,140.36,33.1902]
[1720432409932,99.9651926,140.41,140.34,12.9112]
[1720432410104,20.0,140.4,140.34,12.9112]
[1720432410298,6.08395423,140.43,140.34,12.9112]
[1720432410549,106.36831728,140.47,140.34,12.9112]
[1720432410550,8.78070483,140.44,140.34,12.9112]
[1720432410705,34.22,140.42,140.35,33.1207]
[1720432410900,43.00070483,140.44,140.35,33.1207]
[1720432411105,34.22,140.44,140.35,33.1207]
[1720432412724,15.18382951,140.47,140.35,33.1207]
[1720432412925,8.82305655,140.47,140.37,31.1038]
[1720432413229,8.82305655,140.47,140.38,12.8159]
[1720432413230,0.04235172,140.47,140.38,12.8159]
[1720432414001,0.04235172,140.47,140.39,31.8435]
[1720432414203,0.04235172,140.47,140.41,33.0135]
[1720432414440,7.147,140.57,140.42,13.2434]
[1720432414441,34.22,140.54,140.42,13.2434]
[1720432414730,7.147,140.57,140.44,45.4558]
[1720432415027,8.1244581,140.59,140.44,45.4558]
[1720432415338,8.1244581,140.59,140.45,0.17]
[1720432415729,7.147,140.57,140.45,0.17]
[1720432416038,7.147,140.57,140.44,45.4558]
[1720432416339,7.147,140.57,140.45,0.17]
[1720432416702,8.1244581,140.59,140.45,0.17]
[1720432417722,7.147,140.57,140.44,45.4558]
[1720432417905,20.0,140.56,140.44,45.4558]
[1720432420007,99.9651926,140.55,140.44,45.4558]
[1720432420201,20.0,140.54,140.44,45.4558]
[1720432425715,22.07349861,140.54,140.44,45.4558]
[1720432425917,99.9651926,140.53,140.44,45.4558]
[1720432426339,13.23095423,140.57,140.44,45.4558]
[1720432426524,7.147,140.58,140.44,45.4558]
[1720432426915,9.22049861,140.58,140.44,45.4558]
[1720432427241,99.9651926,140.55,140.44,45.4558]
[1720432427446,99.9651926,140.53,140.44,45.4558]
[1720432427829,99.9651926,140.51,140.4,12.2582]
[1720432428318,20.0,140.5,140.4,12.2582]
[1720432429150,20.0,140.52,140.4,12.2582]
[1720432430124,119.9651926,140.52,140.4,12.2582]
[1720432430654,122.03869121,140.52,140.4,12.2582]
[1720432430841,99.9651926,140.5,140.4,12.2582]
[1720432431146,20.0,140.49,140.4,12.2582]
[1720432431364,99.9651926,140.48,140.4,12.2582]
[1720432431657,20.0,140.47,140.36,12.9588]
[1720432432229,20.0,140.48,140.36,12.9588]
[1720432436744,34.19,140.46,140.36,12.9588]
[1720432438646,20.0,140.45,140.36,12.9588]
[1720432440458,34.19,140.43,140.36,12.9588]
[1720432440749,119.9651926,140.45,140.36,12.9588]
[1720432440750,34.19,140.41,140.36,12.9588]
[1720432440947,20.0,140.4,140.36,12.9588]
[1720432442440,20.0,140.44,140.36,12.9588]
[1720432442744,34.19,140.46,140.36,12.9588]
[1720432443358,34.19,140.44,140.36,12.9588]
[1720432443539,34.19,140.42,140.36,12.9588]
[1720432444254,20.0,140.41,140.36,12.9588]
[1720432445074,20.0,140.41,140.34,32.8282]
[1720432445455,34.19,140.39,140.32,12.034]
[1720432445752,20.0,140.38,140.32,12.034]
[1720432448376,99.9651926,140.44,140.32,12.034]
[1720432448588,34.19,140.46,140.34,13.0854]
[1720432449071,6.36077296,140.5,140.34,13.0854]
[1720432449072,34.19,140.48,140.34,13.0854]
[1720432449976,34.19,140.48,140.36,13.0854]
[1720432450281,40.55077296,140.5,140.38,12.9255]
[1720432450606,10.43773318,140.52,140.38,12.9255]
[1720432451772,20.0,140.51,140.38,12.9255]
[1720432452196,20.0,140.51,140.39,0.17]
[1720432453691,20.0,140.51,140.38,12.9255]
[1720432454301,119.9651926,140.51,140.38,12.9255]
[1720432454980,3.74010376,140.5,140.38,12.9255]
[1720432455169,103.7048619,140.49,140.38,12.9255]
[1720432455504,20.57554481,140.5,140.38,12.9255]
[1720432455505,20.0,140.48,140.38,12.9255]
[1720432456073,20.0,140.49,140.38,12.9255]
[1720432456479,1.65702835,140.51,140.38,12.9255]
[1720432457495,8.78070483,140.54,140.4,12.5375]
[1720432457670,3.73969339,140.53,140.4,12.5375]
[1720432457871,8.78070483,140.54,140.4,12.5375]
[1720432458093,23.73948494,140.53,140.4,12.5375]
[1720432458281,3.73948494,140.52,140.4,12.5375]
[1720432458483,8.78070483,140.54,140.42,12.224]
[1720432458676,15.92770483,140.57,140.42,12.224]
[1720432458884,3.73923365,140.56,140.42,12.224]
[1720432459084,3.73923365,140.55,140.42,12.224]
[1720432459283,3.73923365,140.56,140.43,0.17]
[1720432459484,15.92770483,140.57,140.44,12.6326]
[1720432459678,3.73869542,140.56,140.44,12.6326]
[1720432459880,15.92770483,140.57,140.44,12.6326]
[1720432460182,3.73810489,140.56,140.44,12.6326]
[1720432460380,3.73810489,140.55,140.44,12.6326]
[1720432460681,20.0,140.56,140.44,12.6326]
[1720432460882,3.73873024,140.55,140.44,12.6326]
[1720432461385,3.73942123,140.54,140.44,12.6326]
[1720432461583,20.0,140.54,140.44,12.6326]
[1720432462286,20.0,140.56,140.44,12.6326]
[1720432462480,3.7420138,140.55,140.44,12.6326]
[1720432462680,20.0,140.56,140.44,12.6326]
[1720432462899,3.74232931,140.55,140.45,32.7575]
[1720432463083,7.147,140.57,140.45,32.7575]
[1720432463288,3.74401817,140.56,140.45,32.7575]
[1720432463499,3.74401817,140.55,140.45,32.7575]
[1720432463799,7.147,140.57,140.45,32.7575]
[1720432463979,3.74506475,140.56,140.45,32.7575]
[1720432464382,3.74506475,140.55,140.45,32.7575]
[1720432464586,23.74506475,140.55,140.45,32.7575]
[1720432464796,3.74506475,140.54,140.45,32.7575]
[1720432464981,23.74506475,140.54,140.45,32.7575]
[1720432465175,3.74506475,140.53,140.45,32.7575]
[1720432465381,23.74506475,140.53,140.45,32.7575]
[1720432465581,20.0,140.53,140.45,32.7575]
[1720432465993,20.0,140.56,140.45,32.7575]
[1720432466186,3.74487329,140.55,140.45,32.7575]
[1720432466383,3.74487329,140.54,140.45,32.7575]
[1720432466582,20.0,140.56,140.45,32.7575]
[1720432466881,3.74482401,140.55,140.45,32.7575]
[1720432467082,27.147,140.57,140.45,32.7575]
[1720432467285,3.74553605,140.56,140.45,32.7575]
[1720432467494,3.74575623,140.55,140.45,32.7575]
[1720432467684,27.147,140.57,140.45,32.7575]
[1720432467891,24.31142483,140.56,140.45,32.7575]
[1720432468201,27.147,140.57,140.45,32.7575]
[1720432468202,23.74622764,140.55,140.45,32.7575]
[1720432468509,20.0,140.55,140.45,32.7575]
[1720432468711,20.0,140.56,140.45,32.7575]
[1720432468907,3.74696739,140.55,140.45,32.7575]
[1720432469216,3.74696739,140.54,140.46,1.42189962]
[1720432469499,20.0,140.56,140.46,1.42189962]
[1720432469702,3.74733515,140.55,140.46,1.42189962]
[1720432469908,20.0,140.56,140.46,1.42189962]
[1720432470079,3.74691353,140.55,140.46,1.42189962]
[1720432470279,27.147,140.57,140.46,1.42189962]
[1720432470475,3.74714247,140.56,140.46,1.42189962]
[1720432470679,27.147,140.57,140.45,32.7575]
[1720432470680,127.1121926,140.57,140.45,32.7575]
[1720432470900,34.15,140.55,140.45,32.7575]
[1720432471295,20.0,140.54,140.45,32.7575]
[1720432471486,20.0,140.54,140.46,1.42048257]
[1720432473988,20.0,140.54,140.47,12.35]
[1720432474518,20.0,140.56,140.47,12.35]
[1720432476928,20.0,140.56,140.49,12.0099]
[1720432477118,20.0,140.58,140.49,12.0099]
[1720432479116,7.147,140.62,140.5,43.9486]
[1720432479319,7.147,140.61,140.5,43.9486]
[1720432479628,34.15,140.62,140.51,12.7863]
[1720432480439,20.0,140.61,140.51,12.7863]
[1720432481125,34.15,140.62,140.51,12.7863]
[1720432481819,34.15,140.6,140.51,12.7863]
[1720432482266,20.0,140.59,140.51,12.7863]
[1720432483543,34.15,140.58,140.51,12.7863]
[1720432483748,20.0,140.57,140.51,12.7863]
[1720432484442,34.15,140.58,140.51,12.7863]
[1720432484648,20.0,140.57,140.51,12.7863]
[1720432487544,34.15,140.54,140.51,12.7863]
[1720432487756,20.0,140.53,140.51,12.7863]
[1720432487959,20.0,140.53,140.41,43.4614]
[1720432489065,20.0,140.53,140.4,34.15]
[1720432489066,20.0,140.53,140.43,13.2975]
[1720432489228,20.0,140.53,140.45,13.2975]
[1720432489432,20.0,140.55,140.45,13.2975]
[1720432489645,34.15,140.54,140.45,13.2975]
[1720432490051,20.0,140.53,140.45,13.2975]
[1720432490762,34.15,140.54,140.45,13.2975]
[1720432490937,20.0,140.53,140.45,13.2975]
[1720432492438,14.6536364,140.57,140.45,13.2975]
[1720432492439,34.15,140.55,140.45,13.2975]
[1720432492671,20.0,140.54,140.45,13.2975]
[1720432495257,54.15,140.56,140.45,13.2975]
[1720432495459,3.75511347,140.55,140.45,13.2975]
[1720432495778,54.15,140.56,140.45,13.2975]
[1720432495937,3.75494075,140.55,140.45,13.2975]
[1720432496272,54.15,140.56,140.45,13.2975]
[1720432496469,3.75526276,140.55,140.45,13.2975]
[1720432496644,54.15,140.56,140.45,13.2975]
[1720432496856,3.7551052,140.55,140.45,13.2975]
[1720432497060,54.15,140.56,140.45,13.2975]
[1720432497364,3.75491548,140.55,140.45,13.2975]
[1720432497561,3.75491548,140.54,140.45,13.2975]
[1720432497861,34.15,140.59,140.45,47.4475]
[1720432498069,24.31453541,140.58,140.45,47.4475]
[1720432498364,3.75524401,140.57,140.45,47.4475]
[1720432499044,23.75524401,140.57,140.45,47.4475]
[1720432499363,3.75524401,140.56,140.45,47.4475]
[1720432499674,20.0,140.57,140.45,13.2975]
[1720432499675,3.75695411,140.55,140.45,13.2975]
[1720432499964,34.15,140.55,140.45,13.2975]
[1720432500136,3.75635441,140.54,140.45,13.2975]
[1720432500479,54.15,140.57,140.45,13.2975]
[1720432500759,20.0,140.57,140.45,13.2975]
[1720432500962,34.15,140.55,140.45,13.2975]
[1720432501131,23.75537453,140.54,140.45,13.2975]
[1720432501331,3.7558866,140.53,140.45,13.2975]
[1720432501642,134.6040066,140.56,140.45,13.2975]
[1720432501643,0.488814,140.56,140.45,13.2975]
[1720432502661,3.75589296,140.55,140.45,13.2975]
[1720432502872,0.488814,140.56,140.45,13.2975]
[1720432503029,3.75612215,140.55,140.45,13.2975]
[1720432503235,24.31601232,140.55,140.45,13.2975]
[1720432503434,3.75612215,140.54,140.45,13.2975]
[1720432503654,3.75612215,140.53,140.45,13.2975]
[1720432503844,23.75612215,140.53,140.45,13.2975]
[1720432504159,20.0,140.53,140.45,13.2975]
[1720432504562,20.0,140.55,140.45,13.2975]
[1720432504766,3.75740118,140.54,140.45,13.2975]
[1720432504942,20.0,140.55,140.45,13.2975]
[1720432505142,3.75751274,140.54,140.45,13.2975]
[1720432505364,20.0,140.55,140.45,13.2975]
[1720432505549,3.75744746,140.54,140.45,13.2975]
[1720432505868,20.0,140.55,140.45,13.2975]
[1720432506042,3.75569929,140.54,140.45,13.2975]
[1720432506235,8.29286344,140.56,140.45,13.2975]
[1720432506439,3.75577178,140.55,140.46,32.8597]
[1720432506765,8.29286344,140.56,140.46,32.8597]
[1720432506942,3.75519049,140.55,140.46,32.8597]
[1720432507140,8.29286344,140.56,140.47,12.2143]
[1720432507554,20.0,140.55,140.47,12.2143]
[1720432509267,6.08395423,140.61,140.47,12.2143]
[1720432509268,34.15,140.58,140.47,12.2143]
[1720432509452,3.74996306,140.57,140.49,12.1575]
[1720432509771,42.44286344,140.6,140.49,12.1575]
[1720432509970,3.74897141,140.59,140.49,12.1575]
[1720432510174,32.9014,140.69,140.53,44.1403]
[1720432510349,34.15,140.67,140.54,12.7169]